Cogmind - Beta 13 @@@ ROGUE MODE // 2024.04.18 @ 04:03:45 Player: GregoriusTechneticies Result: Destroyed by G-34 Mercenary with Small Laser Performance ------------- Evolutions (1) 500 Regions Visited (2) 400 Robots Destroyed (46) 230 Value Destroyed (858) 858 Prototype IDs (0) 0 Alien Tech Used (0) 0 Bonus (32) 32 TOTAL SCORE: 2020 Bonus ------- High Alert Combat Kills 32 Cogmind --------- Core Integrity 0/400 Matter 274/300 Energy 100/100 System Corruption 3% Temperature Cool (6) Movement Core (150) Ox2 Location -9/Materials Parts ------- > --- POWER (1) -------- (None) > --- PROPULSION (2) --- (None) > --- UTILITY (4) ------ Small Storage Unit Terrain Scan Processor > --- WEAPON (2) ------- Maul > --- INVENTORY (8) ---- Ion Engine Improved Ion Engine Weight Redist. System Visual Processing Unit Seismic Detector Tractor Beam Assault Rifle Mining Laser Peak State ------------ > --- POWER ------------ Improved Ion Engine > --- PROPULSION ------- Wheel Wheel > --- UTILITY ---------- Small Storage Unit Improved Terrain Scanner Terrain Scan Processor Seismic Detector > --- WEAPON ----------- Heavy Assault Rifle Autogun > --- INVENTORY -------- Light Ion Engine Improved Ion Engine Wheel Visual Processing Unit Seismic Detector Tractor Beam Assault Rifle Mining Laser [Rating: 16] Favorites ----------- Power Light Ion Engine Engine Light Ion Engine Propulsion Wheel Wheel Wheel Utility Small Storage Unit Device Seismic Detector Storage Small Storage Unit Processor Terrain Scan Processor Weapon Assault Rifle Ballistic Gun Assault Rifle Impact Weapon Maul Build | -11 -10 -9 ------- Run | Yrd Mat Mat Slots Evolved 2 | . . 2 Power . | . . . Propulsion . | . . . Utility 2 | . . 2 Weapon . | . . . Parts Attached 30 | 9 . 21 Power 4 | 1 . 3 Engine 4 | 1 . 3 Core . | . . . Reactor . | . . . Propulsion 6 | 2 . 4 Treads . | . . . Leg . | . . . Wheel 6 | 2 . 4 Hover . | . . . Flight . | . . . Utility 13 | 4 . 9 Device 10 | 3 . 7 Storage 2 | 1 . 1 Processor 1 | . . 1 Hackware . | . . . Protection . | . . . Artifact . | . . . Weapon 7 | 2 . 5 Energy Gun . | . . . Energy Cannon . | . . . Ballistic Gun 6 | 2 . 4 Ballistic Cannon . | . . . Launcher . | . . . Special Weapon . | . . . Impact Weapon 1 | . . 1 Slashing Weapon . | . . . Piercing Weapon . | . . . Special Melee Weapon . | . . . Unidentified Prototypes . | . . . Parts Lost 12 | . . 12 Power 2 | . . 2 Propulsion 2 | . . 2 Utility 5 | . . 5 Weapon 3 | . . 3 Highest Loss Streak 8 | . . 8 To Critical Strikes . | . . . Average Slot Usage (%) 92 | . 100 91 Engine 10 | . 14 9 Wheel 21 | . 28 20 Device 18 | . 14 19 Storage 11 | . 14 11 Processor 9 | . . 11 Ballistic Gun 19 | . 28 19 Naked Turns . | . . . Heaviest Build 20 | 12 12 20 Greatest Support 20 | 20 20 20 Greatest Overweight (x) 2 | 1 . 2 Average Overweight (x) . | . . . Largest Inventory Capacity 8 | 8 8 8 Average Capacity 7 | 7 8 8 Most Carried 8 | 8 8 8 Average Carried 7 | 5 8 7 Final Capacity 8 | 8 8 8 Final Carried 8 | 8 8 8 Class Distribution -------------------- 55% | Scavenger-Mutant 44% | Mutant Dominant Class ---------------- Mutant | -10/Materials Scavenger-Mutant | -9/Materials Resources | -11 -10 -9 ----------- Run | Yrd Mat Mat Matter Collected 1196 | 399 43 754 Remotely . | . . . Salvage Created 1590 | 272 45 1273 Parts 111 | 33 6 72 Haulers Intercepted 2 | . . 2 Recyclers Shooed 3 | . . 3 Parts Field Recycled . | . . . Retrieved Matter . | . . . Parts Self-Destructed . | . . . Prevented . | . . . Kills | -11 -10 -9 ------- Run | Yrd Mat Mat Combat Hostiles Destroyed 21 | . 3 18 Guns 21 | . 3 18 Classes Destroyed 10 | 3 1 6 Worker 6 | 2 . 4 Builder 1 | . . 1 Tunneler 9 | 8 . 1 Hauler 2 | . . 2 Recycler 4 | 1 . 3 Mechanic 1 | . . 1 Watcher 2 | . . 2 Swarmer 3 | . 3 . Grunt 15 | . . 15 Sentry 3 | . . 3 Best Kill Streak 7 | 3 3 7 Combat Bots Only 4 | . 3 4 Max Kills in Single Turn 1 | 1 1 1 Gunslinging . | . . . Exploded . | . . . Melee . | . . . Uniques/NPCs Destroyed . | . . . Combat | -11 -10 -9 -------- Run | Yrd Mat Mat Hostile Shots Fired 161 | . 7 154 Missed 47 | . 2 45 Damage Taken 1368 | . 35 1333 Core 422 | . 17 405 Absorbed by Shields . | . . . Core Remaining (%) 96 | 100 93 . Volleys Fired 152 | 33 5 114 Largest 2 | 2 2 2 Hottest 46 | 40 40 46 Shots Fired 271 | 66 10 195 Gun 271 | 66 10 195 Cannon . | . . . Launcher . | . . . Special . | . . . Kinetic 271 | 66 10 195 Thermal . | . . . Explosive . | . . . Electromagnetic . | . . . Robot Hit Streak 14 | 8 5 14 Robot Miss Streak 4 | 4 1 4 Penetration Max . | . . . Secondary Targets 2 | . . 2 Max Gunslinging Chain 1 | . . 1 Shots Hit Robots 158 | 36 6 116 Core Hits 65 | 14 3 48 Critical Kills . | . . . Critical Parts Destroyed 3 | . . 3 Critical Strikes 3 | . . 3 Destroy 2 | . . 2 Smash 1 | . . 1 Melee Attacks 2 | . . 2 Impact 2 | . . 2 Slashing . | . . . Piercing . | . . . Sneak Attacks . | . . . Combat Hostiles . | . . . Follow-up Attacks . | . . . Damage Inflicted 2103 | 396 66 1641 Guns 2065 | 396 66 1603 Cannons . | . . . Explosions . | . . . Melee 38 | . . 38 Ramming . | . . . Kinetic 2065 | 396 66 1603 Thermal . | . . . Explosive . | . . . Electromagnetic . | . . . Impact 38 | . . 38 Slashing . | . . . Piercing . | . . . Highest Corruption 3 | . . 3 Average Corruption 3 | . . 3 Corruption Purged . | . . . Corruption Blocked . | . . . Effects 1 | . . 1 Matter Fused 1 | . . 1 Overload Shots . | . . . Overflow Damage 38 | . . 38 Projectiles . | . . . Explosions . | . . . Melee 38 | . . 38 Knockbacks . | . . . Impact . | . . . Kinetic . | . . . Secondary . | . . . Self-Inflicted Damage . | . . . Shots . | . . . Rammed 1 | . . 1 Targets Rammed 1 | . . 1 Kicked . | . . . Crushed . | . . . Highest Temperature 25 | . . 25 Average Temperature 4 | . . 4 Received Heat Transfer 666 | . . 666 Siege Activations . | . . . Robots Corrupted . | . . . Combat Hostiles . | . . . Parts Fried . | . . . Impact Corruptions 1 | . . 1 Robots Melted . | . . . Combat Hostiles . | . . . Parts Melted . | . . . Heat Transferred . | . . . Parts Sabotaged . | . . . Parts Stolen . | . . . Parts Stripped . | . . . Power Chain Reactions . | . . . Alert | -11 -10 -9 ------- Run | Yrd Mat Mat Peak Influence 533 | 55 105 533 Initial 44 | . 35 44 Average 215 | 27 57 296 Maximum Alert Level 2 | . . 2 Low Security (%) 48 | 100 100 25 Level 1 39 | . . 57 Level 2 11 | . . 16 Level 3 . | . . . Level 4 . | . . . Level 5 . | . . . High Security . | . . . Max Security . | . . . Squads Dispatched 3 | . . 3 Investigation 1 | . . 1 Extermination . | . . . Reinforcement 2 | . . 2 Assault . | . . . Garrison . | . . . Intercept . | . . . Searches Triggered . | . . . Construction Impeded . | . . . Haulers Reinforced . | . . . Active Scanning Responses . | . . . Cargo Convoy Interrupts . | . . . Stealth | -11 -10 -9 --------- Run | Yrd Mat Mat Distress Signals 2 | . . 2 Communications Jammed . | . . . Distress Signals . | . . . Times Spotted 46 | . 3 43 Peak Tracking Total 10 | . 3 10 Tactical Retreats 3 | . . 3 Traps | -11 -10 -9 ------- Run | Yrd Mat Mat Traps Triggered . | . . . Indirectly . | . . . Trap Hack Attempts . | . . . Triggered . | . . . Disarmed . | . . . Reprogrammed . | . . . Reused . | . . . Traps Extracted . | . . . Installed . | . . . Triggered . | . . . Machines | -11 -10 -9 ---------- Run | Yrd Mat Mat Machines Disabled 2 | . . 2 Max in Single Turn 1 | . . 1 Machines Repaired . | . . . Machines Dismantled . | . . . Machines Sabotaged . | . . . Overloaded Fab Kills . | . . . Hacking | -11 -10 -9 --------- Run | Yrd Mat Mat Machines Accessed 3 | . 1 2 Terminals 3 | . 1 2 Fabricators . | . . . Repair Stations . | . . . Recycling Units . | . . . Scanalyzers . | . . . Garrison Access . | . . . Total Hacks 12 | . 3 9 Successful 2 | . . 2 Failed 10 | . 3 7 Catastrophic 1 | . . 1 Database Lockouts . | . . . Manual 12 | . 3 9 Terminals 12 | . 3 9 Fabricators . | . . . Repair Stations . | . . . Recycling Units . | . . . Scanalyzers . | . . . Garrison Access . | . . . Terminal Hacks . | . . . Fabricator Hacks . | . . . Repair Station Hacks . | . . . Recycling Unit Hacks . | . . . Scanalyzer . | . . . Garrison Access Hacks . | . . . Unauthorized Hacks 2 | . . 2 Terminals 2 | . . 2 Botnet 2 | . . 2 Fabricators . | . . . Repair Stations . | . . . Recycling Units . | . . . Scanalyzers . | . . . Garrison Access . | . . . Data Cores Recovered . | . . . Used . | . . . Hacking Detections 3 | . 1 2 Full Trace Events 2 | . . 2 Feedback Events . | . . . Feedback Blocked . | . . . Robot Schematics Acquired . | . . . Robots Built . | . . . Authchips . | . . . Time . | . . . Total Robot Build Rating . | . . . Part Schematics Acquired . | . . . Parts Built . | . . . Authchips . | . . . Time . | . . . Total Part Build Rating . | . . . Parts Repaired . | . . . Time . | . . . Parts Recycled . | . . . Recycled Matter . | . . . Retrieved Matter . | . . . Retrieved Components . | . . . Parts Scanalyzed . | . . . Part Schematics Acquired . | . . . Parts Damaged . | . . . Bothacking | -11 -10 -9 ------------ Run | Yrd Mat Mat Used RIF Installer . | . . . Robots Hacked . | . . . Non-combat . | . . . Combat . | . . . Robot Hacks Applied . | . . . Relay Couplers Released . | . . . Fabnet Peak Effective % . | . . . Robots Rewired . | . . . Allies Hacked . | . . . Hacks Repelled . | . . . Allies | -11 -10 -9 -------- Run | Yrd Mat Mat Total Allies . | . . . Largest Group . | . . . Highest-Rated Group . | . . . Highest-Rated Ally . | . . . Total Orders . | . . . Ally Attacks . | . . . Total Damage . | . . . Kills . | . . . Allies Corrupted . | . . . Allies Melted . | . . . Intel | -11 -10 -9 ------- Run | Yrd Mat Mat Robot Analysis Total . | . . . Derelict Logs Recovered . | . . . Drone Launches . | . . . Drone Recoveries . | . . . Exploration | -11 -10 -9 ------------- Run | Yrd Mat Mat Turns Passed 1136 | 261 94 781 Spaces Moved 757 | 175 96 486 Core 30 | 5 . 25 Treads . | . . . Legs . | . . . Wheels 727 | 170 96 461 Hover . | . . . Flight . | . . . Fastest Speed 50 | 50 80 80 Average Speed 82 | 82 80 83 Slowest Speed 150 | 95 80 150 Overloaded Moves . | . . . Propulsion Burnouts . | . . . Robots Hopped . | . . . Cave-ins Triggered . | . . . Exploration Rate (%) 22 | 5 20 42 Regions Visited 2 Branch Regions . Pre-discovered Areas . | . . . Known Exits Taken . | . . . Unknown Exits Taken 2 | 1 1 . Scrap Searched . | . . . Spaces Dug . | . . . Terrain Destroyed . | . . . Melee . | . . . Projectile . | . . . AOE . | . . . Terrain Rammed . | . . . Walls Destroyed . | . . . Machines Disabled . | . . . Actions | -11 -10 -9 --------- Run | Yrd Mat Mat Total 1036 | 241 104 691 Wait 40 | . 2 38 Move 755 | 174 95 486 Hop . | . . . Pick Up 30 | 17 1 12 Fast Attach 10 | 4 . 6 Attach 6 | 3 . 3 Detach . | . . . Swap 14 | 2 . 12 Drop 26 | 8 1 17 Fire 152 | 33 5 114 Melee 2 | . . 2 Ram 1 | . . 1 Kick . | . . . Crush . | . . . Escape Stasis . | . . . Rewire . | . . . Trap . | . . . Miscellaneous . | . . . Route ------- -11/Scrapyard -10/Materials -9/Materials (discovered 1 exit: [*Min]) History --------- Turn | Location | Event 3 | -11/Scrapyard | Discovered new exit (range 15) 262 | -11/Scrapyard | Entered Materials 307 | -10/Materials | Build established: Mutant 348 | -10/Materials | Discovered new exit (range 8) 356 | -10/Materials | Entered another Materials area 356 | -9/Materials | Evolved 2 slots: Utility x2 700 | -9/Materials | Build established: Scavenger-Mutant 872 | -9/Materials | Discovered new exit (range 15) 968 | -9/Materials | Lost 3 parts (1p1u1w) 1096 | -9/Materials | Core integrity fell below 50% 1122 | -9/Materials | Core integrity fell below 20% 1137 | -9/Materials | Destroyed by G-34 Mercenary with Small Laser Last Messages --------------- 01061_ G-34 Mercenary destroyed. 01062_ Extracted 4 matter. 01070_ Ion Engine destroyed. 01071_ Sensor Array destroyed. 01071_ System corrupted by crushing effect (+3). 01071_ Knocked back. 01078_ Wheel destroyed. 01097_ Terrain Scanner destroyed. 01103_ System corrupted: Matter fused (-5). 01109_ Autogun destroyed. 01109_ Acquired Sensor Array. 01115_ Acquired Maul. 01124_ G-34 Mercenary suffers critical hit (Smash). 01124_ Destroyed Ion Engine. 01124_ G-34 Mercenary system corrupted by crushing effect. 01133_ W-16 Scout sends out distress signal. 01134_ G-34 Mercenary IFF system glitched. 01135_ Sensor Array destroyed. Map ----- +----------------------------------------------------+ | # =[%+!% ???????????????? | | # """!=######## ???????????????? | | + "R #??#######/##### ???????????????? | | # """ ##????# #??????????????????????????? | | # ##?##?# """ ##?????? ??????????????????? | | # ##?#??# """ ##?????????????????????????? | | ###########??# """ #???????? ?????????????????? | | #???##?#####?# #????? ???????????????????? | | #?#?########## #????!!/ ?????????????????? | | ##########!! ####+##### !// ???????????????? | | = ####?##?#!! !/ ???????????????? | | ###?#####]] ???????????????? | | #?#?#####]] ???????????????? | | ###?##?##!! ########### ????????????????? | | ##?###?##!! # T % #???????????????????? | | #?####?###### # """ #???????????????????? | | ##??##?#????# / """ #???????????????????? | | ##?#####???#?# # ! """ #???????????????????? | | # ? ? #?????# # #???????????????????? | | +?? ? #?##?## ####/######???????????????????? | | # """ ##?##?# #??# ##???########????????????? | | =# "?" ?#?#?#?# #??# #???""""" #????????????? | | ^# """? #?##??# #??# #???""T"" #????????????? | | *# ? ?? #??##?# #### ### ! #????????????? | | #??????###???# gg # #????????????? | | ######## ##### w g @ #????????????? | | ## "" # g # #????????????? | | # ""S #######/#### ]] #????????????? | | *# !!! "" #????! ????? Y ] #????????????? | | +! !!! #???# ?????### #####????????????? | | # !!! #???# ?????????#????????????????? | | # ! ##?##"""??????????????????????????? | | # #???#""" ?????????????????????????? | | ###+#########???#"""??????????????????????????? | | # ##?#?##?????????????????????????????????? | | ##??????????????????????????????????????? | | T #????#??????????????????????????????????? | | ##?????#????????????????????????????????? | | ### #????? ? ???????????????????????????????? | | ?### ##???? ??????????????????????????????????? | | ?### #? ??? ??????????????????????????????????? | | "" # ## ????""? ??????????????????????????????? | | ???+ ##?? ????????????????????????????????????? | | ? # ##???????????????????????????????????????? | | ? # ## ??????????????????????????????????????? | | ??#? #????????????????????????????????????????? | | ??# #???????????????????????????????????????? | | #?# ? ??????????????????????????????????????? | | ?#?? ???????????????????????????????????????? | | ???? ???????????????????????????????????????? | +----------------------------------------------------+ Best States ------------- Heat Dissipation 28 Energy Generation 12 Energy Capacity 265 Matter Stores 300 Matter Capacity 300 Sight Range 16 Robot Scan Range 14 Terrain Scan Range 16 Terrain Scan Density 85 Evasion (%) 44 Item Schematics ----------------- None Robot Schematics ------------------ None Fabricated ------------ Nothing Alien Tech Used ----------------- None Achievements -------------- None Challenges ------------ None Game ------ Seed GammaMassThermoblaster Manual? 0 Play Time 00:18:02 Cumulative 37.2 hours Start 2024.04.18 @ 03:47:25 End 2024.04.18 @ 04:03:45 Sessions 1 Manual Loads 0 Difficulty Rogue Special Mode None Game No. 51 Rogue 36 Adventurer 0 Explorer 15 Win Type - Total 0 Types 0/0/0/0/0/0/0/0/0 Lore% 22 Gallery% 32 Achievement% 23 Wizard Run 0 Options --------- Layout 1 ASCII 0 Keyboard 0 Movement Mouse Keybinds 0 Fullscreen 1 Font 24/Smallcaps Map View 50x35 Zoom Use 0% Tactical HUD 1 Map Filters NONE Filters NONE Steam 1 RUN: bf69c802-3cf5-4a20-8159-b6d089f55bde